Cogmind - Beta 13 @@@ ROGUE MODE // 2024.03.11 @ 20:50:21 Player: strategineer Result: Destroyed by G-47 Trooper with Particle Gun Performance ------------- Evolutions (3) 1500 Regions Visited (5) 1000 Robots Destroyed (23) 115 Value Destroyed (708) 708 Prototype IDs (1) 20 Alien Tech Used (0) 0 Bonus (0) 0 TOTAL SCORE: 3343 Bonus ------- None Cogmind --------- Core Integrity 0/700 Matter 300/300 Energy 100/100 System Corruption 0% Temperature Cool (9) Movement Core (50) Location -7/Factory Parts ------- > --- POWER (2) -------- (None) > --- PROPULSION (4) --- (None) > --- UTILITY (5) ------ Improved Signal Interpreter > --- WEAPON (2) ------- (None) > --- INVENTORY (5) ---- Carbon-fiber Leg Hardened Light Armor Plating Hardened Light Armor Plating Peak State ------------ > --- POWER ------------ Heavy Ion Engine Light Nuclear Core > --- PROPULSION ------- Aluminum Leg Aluminum Leg Aluminum Leg Carbon-fiber Leg > --- UTILITY ---------- Large Matter Pod Improved Signal Interpreter Hardened Light Armor Plating Shield Generator Recalibrator > --- WEAPON ----------- Particle Gun > --- INVENTORY -------- Hardened Light Armor Plating Hardened Light Armor Plating Shield Generator [Rating: 26] Favorites ----------- Power Heavy Ion Engine Engine Heavy Ion Engine Power Core Light Nuclear Core Propulsion Aluminum Leg Leg Aluminum Leg Wheel Wheel Utility Large Matter Pod Device Shield Generator Storage Large Matter Pod Processor Signal Interpreter Protection Hardened Light Armor Plating Weapon Improved Light Cannon Energy Gun Small Laser Ballistic Gun Assault Rifle Ballistic Cannon Improved Light Cannon Build | -11 -10 -9 -9 -8 -7 ------- Run | Yrd Mat Mat Min Mat Fac Slots Evolved 6 | . . 2 . 2 2 Power 1 | . . . . 1 . Propulsion 2 | . . 1 . . 1 Utility 3 | . . 1 . 1 1 Weapon . | . . . . . . Parts Attached 44 | 9 3 12 . 13 7 Power 7 | 2 . 3 . 2 . Engine 6 | 2 . 3 . 1 . Core 1 | . . . . 1 . Reactor . | . . . . . . Propulsion 14 | 3 . 2 . 5 4 Treads . | . . . . . . Leg 13 | 2 . 2 . 5 4 Wheel 1 | 1 . . . . . Hover . | . . . . . . Flight . | . . . . . . Utility 16 | 1 3 4 . 5 3 Device 10 | 1 . 4 . 3 2 Storage 2 | . 2 . . . . Processor 2 | . 1 . . 1 . Hackware . | . . . . . . Protection 2 | . . . . 1 1 Artifact . | . . . . . . Weapon 7 | 3 . 3 . 1 . Energy Gun 3 | 2 . . . 1 . Energy Cannon . | . . . . . . Ballistic Gun 1 | 1 . . . . . Ballistic Cannon 3 | . . 3 . . . Launcher . | . . . . . . Special Weapon . | . . . . . . Impact Weapon . | . . . . . . Slashing Weapon . | . . . . . . Piercing Weapon . | . . . . . . Special Melee Weapon . | . . . . . . Unidentified Prototypes 1 | . . 1 . . . Parts Lost 17 | . . . . 6 11 Power 3 | . . . . 1 2 Propulsion 5 | . . . . 1 4 Utility 6 | . . . . 2 4 Weapon 3 | . . . . 2 1 Highest Loss Streak 5 | . . . . 4 5 To Critical Strikes . | . . . . . . Average Slot Usage (%) 92 | . 95 99 100 90 73 Engine 9 | . 14 11 11 10 4 Core 2 | . . . . 5 2 Leg 29 | . 28 32 33 26 26 Device 9 | . 4 11 11 9 9 Storage 10 | . 15 11 11 9 6 Processor 9 | . 3 11 11 10 7 Protection 1 | . . . . . 8 Energy Gun 2 | . 14 1 . 1 4 Ballistic Gun 3 | . 14 6 . . . Ballistic Cannon 12 | . . 14 22 16 . Naked Turns . | . . . . . . Heaviest Build 31 | 9 14 21 21 30 31 Greatest Support 50 | 20 20 30 30 35 50 Greatest Overweight (x) 1 | . . . . . 1 Average Overweight (x) . | . . . . . . Largest Inventory Capacity 5 | 5 5 5 5 5 5 Average Capacity 5 | 5 5 5 5 5 5 Most Carried 5 | 5 5 5 5 5 4 Average Carried 4 | 3 4 4 5 3 2 Final Capacity 5 | 5 5 5 5 5 5 Final Carried 5 | 5 5 5 5 4 3 Class Distribution -------------------- 72% | Mutant 27% | Scavenger-Mutant Dominant Class ---------------- Mutant | -10/Materials Mutant | -9/Materials Mutant | -9/Mines Scavenger-Mutant | -8/Materials Scavenger-Mutant | -7/Factory Resources | -11 -10 -9 -9 -8 -7 ----------- Run | Yrd Mat Mat Min Mat Fac Matter Collected 1017 | 286 54 319 30 317 11 Remotely . | . . . . . . Salvage Created 583 | 62 54 116 17 287 47 Parts 47 | 5 7 8 6 21 . Haulers Intercepted . | . . . . . . Recyclers Shooed 1 | . . 1 . . . Parts Field Recycled . | . . . . . . Retrieved Matter . | . . . . . . Parts Self-Destructed . | . . . . . . Prevented . | . . . . . . Kills | -11 -10 -9 -9 -8 -7 ------- Run | Yrd Mat Mat Min Mat Fac Combat Hostiles Destroyed 19 | 1 1 5 3 8 1 Guns 3 | 1 1 . . . 1 Cannons 16 | . . 5 3 8 . Classes Destroyed 8 | 2 1 3 . 2 . Tunneler 1 | 1 . . . . . Operator 1 | . . 1 . . . Watcher 2 | . 1 . . 1 . Swarmer 6 | . . 3 3 . . Grunt 8 | 1 1 1 . 5 . Brawler 1 | . . . . 1 . Duelist 1 | . . . . 1 . Sentry 3 | . . 1 . 1 1 Best Kill Streak 5 | 2 2 4 3 5 1 Combat Bots Only 5 | 1 1 4 3 5 1 Max Kills in Single Turn 2 | 2 1 1 1 1 1 Gunslinging . | . . . . . . Exploded . | . . . . . . Melee . | . . . . . . Uniques/NPCs Destroyed . | . . . . . . Combat | -11 -10 -9 -9 -8 -7 -------- Run | Yrd Mat Mat Min Mat Fac Hostile Shots Fired 346 | 7 7 24 4 101 203 Missed 122 | 3 1 9 1 31 77 Damage Taken 2804 | 43 61 133 19 973 1575 Core 959 | . 19 29 . 199 712 Absorbed by Shields 456 | . . . 9 265 182 Core Remaining (%) 86 | 100 92 . 92 63 . Volleys Fired 57 | 4 5 11 4 26 7 Largest 2 | 2 2 2 2 2 1 Hottest 104 | 80 60 78 78 104 65 Shots Fired 107 | 8 10 22 8 52 7 Gun 29 | 8 10 . . 4 7 Cannon 78 | . . 22 8 48 . Launcher . | . . . . . . Special . | . . . . . . Kinetic 83 | . 5 22 8 48 . Thermal 24 | 8 5 . . 4 7 Explosive . | . . . . . . Electromagnetic . | . . . . . . Robot Hit Streak 12 | 4 3 5 11 12 5 Robot Miss Streak 2 | 1 2 2 1 2 2 Penetration Max . | . . . . . . Secondary Targets . | . . . . . . Shots Hit Robots 71 | 6 7 13 6 34 5 Core Hits 39 | 3 3 6 3 19 5 Critical Kills . | . . . . . . Critical Parts Destroyed . | . . . . . . Critical Strikes 1 | . . . . 1 . Blast 1 | . . . . 1 . Melee Attacks . | . . . . . . Impact . | . . . . . . Slashing . | . . . . . . Piercing . | . . . . . . Sneak Attacks . | . . . . . . Combat Hostiles . | . . . . . . Follow-up Attacks . | . . . . . . Damage Inflicted 1486 | 86 79 327 123 774 97 Guns 288 | 86 79 . . 42 81 Cannons 1168 | . . 327 123 718 . Explosions . | . . . . . . Melee . | . . . . . . Ramming 30 | . . . . 14 16 Kinetic 1216 | . 48 327 123 718 . Thermal 240 | 86 31 . . 42 81 Explosive . | . . . . . . Electromagnetic . | . . . . . . Impact . | . . . . . . Slashing . | . . . . . . Piercing . | . . . . . . Highest Corruption . | . . . . . . Average Corruption . | . . . . . . Corruption Purged . | . . . . . . Corruption Blocked . | . . . . . . Overload Shots . | . . . . . . Overflow Damage 41 | . . 35 . 6 . Projectiles 41 | . . 35 . 6 . Explosions . | . . . . . . Melee . | . . . . . . Knockbacks 16 | . . 3 1 12 . Impact . | . . . . . . Kinetic 15 | . . 3 1 11 . Secondary 1 | . . . . 1 . Self-Inflicted Damage . | . . . . . . Shots . | . . . . . . Rammed . | . . . . . . Targets Rammed 11 | . . . . 5 6 Kicked 11 | . . . . 5 6 Crushed . | . . . . . . Highest Temperature 220 | 90 18 72 36 220 88 Average Temperature 54 | 51 12 28 17 75 29 Received Heat Transfer 960 | 24 24 18 . 464 430 Siege Activations . | . . . . . . Robots Corrupted . | . . . . . . Combat Hostiles . | . . . . . . Parts Fried . | . . . . . . Impact Corruptions . | . . . . . . Robots Melted . | . . . . . . Combat Hostiles . | . . . . . . Parts Melted 1 | . . . . . 1 Heat Transferred 571 | 200 75 . . 111 185 Parts Sabotaged . | . . . . . . Parts Stolen . | . . . . . . Parts Stripped . | . . . . . . Power Chain Reactions . | . . . . . . Alert | -11 -10 -9 -9 -8 -7 ------- Run | Yrd Mat Mat Min Mat Fac Peak Influence 263 | 25 58 144 104 263 154 Initial 114 | . 16 24 19 40 114 Average 89 | 6 28 57 50 178 115 Maximum Alert Level 1 | . . . . 1 . Low Security (%) 83 | 100 100 100 100 35 100 Level 1 16 | . . . . 64 . Level 2 . | . . . . . . Level 3 . | . . . . . . Level 4 . | . . . . . . Level 5 . | . . . . . . High Security . | . . . . . . Max Security . | . . . . . . Squads Dispatched 1 | . . . . 1 . Investigation . | . . . . . . Extermination . | . . . . . . Reinforcement 1 | . . . . 1 . Assault . | . . . . . . Garrison . | . . . . . . Intercept . | . . . . . . Searches Triggered . | . . . . . . Construction Impeded . | . . . . . . Haulers Reinforced . | . . . . . . Active Scanning Responses . | . . . . . . Cargo Convoy Interrupts . | . . . . . . Stealth | -11 -10 -9 -9 -8 -7 --------- Run | Yrd Mat Mat Min Mat Fac Distress Signals 6 | . 2 4 . . . Communications Jammed . | . . . . . . Distress Signals . | . . . . . . Times Spotted 37 | 1 6 7 3 14 6 Peak Tracking Total 9 | 1 8 4 3 9 5 Tactical Retreats 3 | . . . 1 2 . Traps | -11 -10 -9 -9 -8 -7 ------- Run | Yrd Mat Mat Min Mat Fac Traps Triggered 1 | . . . . . 1 Indirectly . | . . . . . . Trap Hack Attempts . | . . . . . . Triggered . | . . . . . . Disarmed . | . . . . . . Reprogrammed . | . . . . . . Reused . | . . . . . . Traps Extracted . | . . . . . . Installed . | . . . . . . Triggered . | . . . . . . Machines | -11 -10 -9 -9 -8 -7 ---------- Run | Yrd Mat Mat Min Mat Fac Machines Disabled 2 | . . . . 2 . Max in Single Turn 1 | . . . . 1 . Machines Repaired . | . . . . . . Machines Dismantled . | . . . . . . Machines Sabotaged . | . . . . . . Overloaded Fab Kills . | . . . . . . Hacking | -11 -10 -9 -9 -8 -7 --------- Run | Yrd Mat Mat Min Mat Fac Machines Accessed 2 | . . 1 . 1 . Terminals 1 | . . . . 1 . Fabricators . | . . . . . . Repair Stations . | . . . . . . Recycling Units 1 | . . 1 . . . Scanalyzers . | . . . . . . Garrison Access . | . . . . . . Total Hacks 5 | . . 2 . 3 . Successful 4 | . . 1 . 3 . Failed 1 | . . 1 . . . Catastrophic . | . . . . . . Database Lockouts . | . . . . . . Manual . | . . . . . . Terminals 3 | . . . . 3 . Fabricators . | . . . . . . Repair Stations . | . . . . . . Recycling Units 2 | . . 2 . . . Scanalyzers . | . . . . . . Garrison Access . | . . . . . . Terminal Hacks 3 | . . . . 3 . Record 3 | . . . . 3 . Fabricator Hacks . | . . . . . . Repair Station Hacks . | . . . . . . Recycling Unit Hacks 1 | . . 1 . . . Recycle Component 1 | . . 1 . . . Scanalyzer . | . . . . . . Garrison Access Hacks . | . . . . . . Unauthorized Hacks . | . . . . . . Terminals . | . . . . . . Fabricators . | . . . . . . Repair Stations . | . . . . . . Recycling Units . | . . . . . . Scanalyzers . | . . . . . . Garrison Access . | . . . . . . Data Cores Recovered 1 | . . 1 . . . Used . | . . . . . . Hacking Detections 1 | . . . . 1 . Full Trace Events . | . . . . . . Feedback Events . | . . . . . . Feedback Blocked . | . . . . . . Robot Schematics Acquired . | . . . . . . Robots Built . | . . . . . . Authchips . | . . . . . . Time . | . . . . . . Total Robot Build Rating . | . . . . . . Part Schematics Acquired . | . . . . . . Parts Built . | . . . . . . Authchips . | . . . . . . Time . | . . . . . . Total Part Build Rating . | . . . . . . Parts Repaired . | . . . . . . Time . | . . . . . . Parts Recycled 1 | . . 1 . . . Recycled Matter . | . . . . . . Retrieved Matter . | . . . . . . Retrieved Components . | . . . . . . Parts Scanalyzed . | . . . . . . Part Schematics Acquired . | . . . . . . Parts Damaged . | . . . . . . Bothacking | -11 -10 -9 -9 -8 -7 ------------ Run | Yrd Mat Mat Min Mat Fac Used RIF Installer . | . . . . . . Robots Hacked . | . . . . . . Non-combat . | . . . . . . Combat . | . . . . . . Robot Hacks Applied . | . . . . . . Relay Couplers Released . | . . . . . . Fabnet Peak Effective % . | . . . . . . Robots Rewired . | . . . . . . Allies Hacked . | . . . . . . Hacks Repelled . | . . . . . . Allies | -11 -10 -9 -9 -8 -7 -------- Run | Yrd Mat Mat Min Mat Fac Total Allies . | . . . . . . Largest Group . | . . . . . . Highest-Rated Group . | . . . . . . Highest-Rated Ally . | . . . . . . Total Orders . | . . . . . . Ally Attacks . | . . . . . . Total Damage . | . . . . . . Kills . | . . . . . . Allies Corrupted . | . . . . . . Allies Melted . | . . . . . . Intel | -11 -10 -9 -9 -8 -7 ------- Run | Yrd Mat Mat Min Mat Fac Robot Analysis Total . | . . . . . . Derelict Logs Recovered . | . . . . . . Drone Launches . | . . . . . . Drone Recoveries . | . . . . . . Exploration | -11 -10 -9 -9 -8 -7 ------------- Run | Yrd Mat Mat Min Mat Fac Turns Passed 1378 | 124 86 457 147 350 214 Spaces Moved 876 | 85 53 319 113 198 108 Core 27 | 27 . . . . . Treads . | . . . . . . Legs 849 | 58 53 319 113 198 108 Wheels . | . . . . . . Hover . | . . . . . . Flight . | . . . . . . Fastest Speed 50 | 50 120 120 120 120 120 Average Speed 118 | 97 120 120 120 120 121 Slowest Speed 190 | 120 120 120 120 120 190 Overloaded Moves . | . . . . . . Propulsion Burnouts . | . . . . . . Robots Hopped . | . . . . . . Cave-ins Triggered . | . . . . . . Exploration Rate (%) 15 | 6 18 25 22 17 5 Regions Visited 5 Branch Regions 1 Pre-discovered Areas 1 | . . . 1 . . Known Exits Taken 4 | . 1 1 1 1 . Unknown Exits Taken 1 | 1 . . . . . Scrap Searched . | . . . . . . Spaces Dug . | . . . . . . Terrain Destroyed 2 | . . 1 . 1 . Melee . | . . . . . . Projectile 2 | . . 1 . 1 . AOE . | . . . . . . Terrain Rammed . | . . . . . . Walls Destroyed . | . . . . . . Machines Disabled . | . . . . . . Actions | -11 -10 -9 -9 -8 -7 --------- Run | Yrd Mat Mat Min Mat Fac Total 1114 | 117 66 376 116 258 181 Wait 59 | 4 . . . 4 51 Move 872 | 84 52 318 112 198 108 Hop . | . . . . . . Pick Up 37 | 13 2 16 . 5 1 Fast Attach 14 | 1 3 4 . 4 2 Attach 16 | 5 . 2 . 5 4 Detach 3 | . . . . 2 1 Swap 14 | 3 . 6 . 4 1 Drop 32 | 3 4 19 . 6 . Fire 57 | 4 5 11 4 26 7 Melee . | . . . . . . Ram . | . . . . . . Kick 10 | . . . . 4 6 Crush . | . . . . . . Escape Stasis . | . . . . . . Rewire . | . . . . . . Trap . | . . . . . . Miscellaneous . | . . . . . . Route ------- -11/Scrapyard -10/Materials (discovered 2 exits: *Mat / [*Min]) -9/Materials -9/Mines -8/Materials -7/Factory History --------- Turn | Location | Event 2 | -11/Scrapyard | Met Revision 17 72 | -11/Scrapyard | Discovered new exit (range 8) 125 | -11/Scrapyard | Entered Materials 146 | -10/Materials | Discovered new exit (range 15) 185 | -10/Materials | Discovered new exit (range 16) 210 | -10/Materials | Identified exit to Materials 211 | -10/Materials | Entered another Materials area 211 | -9/Materials | Evolved 2 slots: Propulsion x1, Utility x1 358 | -9/Materials | Build established: Mutant 586 | -9/Materials | Discovered new exit (range 13) 666 | -9/Materials | Identified exit to Mines 668 | -9/Materials | Entered Mines 808 | -9/Mines | Discovered new exit (range 7) 809 | -9/Mines | Learned location of Storage (-7) 814 | -9/Mines | Identified exit to Materials 815 | -9/Mines | Entered Materials 815 | -8/Materials | Evolved 2 slots: Power x1, Utility x1 954 | -8/Materials | Lost 4 parts (1p1n2u) 1153 | -8/Materials | Discovered new exit (range 3) 1164 | -8/Materials | Identified exit to Factory 1165 | -8/Materials | Entered Factory 1165 | -7/Factory | Evolved 2 slots: Propulsion x1, Utility x1 1225 | -7/Factory | Build established: Scavenger-Mutant 1337 | -7/Factory | Lost 5 parts (1p2n1u1w) 1370 | -7/Factory | Core integrity fell below 50% 1377 | -7/Factory | Core integrity fell below 20% 1379 | -7/Factory | Destroyed by G-47 Trooper with Particle Gun Last Messages --------------- 01361_ Carbon-fiber Leg severed. 01361_ U-05 Engineer lays Concrete. 01362_ K-01 Serf collects debris. 01363_ Carbon-fiber Leg severed. 01363_ U-05 Engineer lays Concrete. 01367_ K-01 Serf collects debris. 01367_ U-05 Engineer lays Concrete. 01368_ Critical hit (Burn: +37). 01369_ U-05 Engineer lays Concrete. 01369_ Lrg. Matter Pod destroyed. 01370_ K-01 Serf collects debris. 01371_ U-05 Engineer lays Concrete. 01374_ Recalibrator severed. 01374_ U-05 Engineer lays Concrete. 01374_ K-01 Serf collects debris. 01374_ U-05 Engineer lays Concrete. 01375_ U-05 Engineer builds a Wall. 01376_ U-05 Engineer lays Concrete. 01378_ K-01 Serf collects debris. 01378_ U-05 Engineer lays Concrete. Map ----- +----------------------------------------------------+ | ?????????????????????????????????????????????????? | | ?????????????????????????????????????????????????? | | ?????????????????????????????????????????????????? | | ?????????????????????????????????????????????????? | | ?????????????????????????????????????????????????? | | ?????????????????????????????????????????????????? | | ?????????????????????????????????????????????????? | | ?????????????????????????????????????????????????? | | ?????????????????????????????????????????????????? | | ?????????????????????????????????????????????????? | | ?????????????????????????????????????????????????? | | ?????????????????????????????????????????????????? | | ?????????????????????????????????????????????????? | | ?????????????????????????????????????????????????? | | ?????????????????????????????????????????????????? | | ?????????????????????????????????????????????????? | | ???????????????????????????????????"" ???????????? | | ???????????????????????????????????"" #??????????? | | ??????????????????????????????????""" #??????????? | | ?????????????????##############??? ???????????? | | ?????????????????# #?? """ #??????????? | | ?????????????????# """ ^ [#?? """ #??????????? | | ?????????????????# """ #? """ #??????????? | | ?????????????????# "S ## #??????????? | | ?????????????????# """ u ;; #??????????? | | ?????????????????# "" =@= ;;#######??????????? | | ?????????????????# =!lggk #????????????????? | | ?????????????????# u #????????????????? | | ??????????? ?????# g #????????????????? | | ??????????? "????# ^ ##???????????????? | | ???????????? ??# #???????????##### | | ????????????""" ?# u# #???????????# | | ????????????""" #####/####################### | | ????????""" """ t # | | ?????? % # | | ?????? # | | ?????? ! + | | ?????? # | | ???????#+######+## ################ # | | ???????????????? # ###??????????????# ##### | | ??????????????? """ ###????????????????# | | ??????????????" """ ???????????????????# | | ?????????????"" """????????????????????# | | ????????????? ? ???????????????###??# | | ????????????? ???[ ??????????????? ??# | | ????????????????? ????????????????""""?# | | ????????????????? ??????????????? """"?# | | ????????????????????????????????? """" # | | ???????????????????????????????? """" # | | ???????????????????????????????? """" + | +----------------------------------------------------+ Best States ------------- Heat Dissipation 34 Energy Generation 23 Energy Capacity 340 Matter Stores 450 Matter Capacity 600 Sight Range 16 Terrain Scan Density 10 Armor Coverage 300 Evasion (%) 55 Item Schematics ----------------- None Robot Schematics ------------------ None Fabricated ------------ Nothing Alien Tech Used ----------------- None Achievements -------------- None Challenges ------------ None Game ------ Seed MeleeMachineSuperbattery Manual? 0 Play Time 00:37:29 Cumulative 21.7 hours Start 2024.03.11 @ 19:31:32 End 2024.03.11 @ 20:50:21 Sessions 5 Manual Loads 0 Difficulty Rogue Special Mode None Game No. 27 Rogue 27 Adventurer 0 Explorer 0 Win Type - Total 0 Types 0/0/0/0/0/0/0/0/0 Lore% 7 Gallery% 29 Achievement% 21 Wizard Run 0 Options --------- Layout 1 ASCII 0 Keyboard 1 Movement Numpad Keybinds 1 Fullscreen 1 Font 32/SmallcapsGlow Map View 50x35 Zoom Use 0% Tactical HUD 1 Map Filters NONE Filters NONE Steam 1 RUN: 39934e93-5680-4826-af32-5c898ebec149